Cogmind - Beta 13 @@@ ROGUE MODE // 2024.05.28 @ 05:41:32 Player: arkn Result: Destroyed by P-60 Hacker with Shock Rifle Performance ------------- Evolutions (4) 2000 Regions Visited (9) 1800 Robots Destroyed (198) 990 Value Destroyed (6344) 6344 Prototype IDs (5) 100 Alien Tech Used (0) 0 Bonus (752) 752 TOTAL SCORE: 11986 Bonus ------- High Alert Combat Kills 662 Follower Combat Kills 220 Friendly Fire -130 Cogmind --------- Core Integrity 0/850 Matter 82/300 Energy 290/290 System Corruption 8% Temperature Cool (0) Movement Rolling (140) Ox4 Location -6/Lower Caves Parts ------- > --- POWER (1) -------- Improved Deuterium Engine > --- PROPULSION (4) --- Flexi-carbon Leg Wheel > --- UTILITY (7) ------ Machine Analyzer Machine Analyzer Enhanced Optical Array Armor Integrity Analyzer Improved Medium Armor Plating Graphene Brace (fused) High-powered Tractor Beam > --- WEAPON (3) ------- Magnetic Acceleration Cannon Magnetic Acceleration Cannon Heavy Flak Cannon > --- INVENTORY (5) ---- Machine Analyzer Hardlight Generator Makeshift Hacking Suite Recalibrator Power Maul Peak State ------------ > --- POWER ------------ Light Antimatter Reactor > --- PROPULSION ------- Armored Huge Wheel Armored Huge Wheel > --- UTILITY ---------- Improved Cooling System Coolant Injector Huge Storage Unit Target Analyzer Armor Integrity Analyzer Hardened Medium Armor Plating Graphene Brace > --- WEAPON ----------- Mini Assault Cannon Mini Assault Cannon Power Maul > --- INVENTORY -------- Structural Scanner Structural Scanner Trap Scanner Trap Scanner Enhanced Optical Array Improved Sensor Array Long-range Terrain Scanner Armor Integrity Analyzer Improved Medium Armor Plating Improved Medium Armor Plating System Restoration Module Advanced Field Recycling Unit Battle Rifle Battle Cannon Battle Cannon Battle Cannon Battle Cannon Advanced Assault Cannon Magnetic Acceleration Cannon Magnetic Acceleration Cannon Gamma Bomb Array Heavy Rocket Launcher Power Maul Power Sword [Rating: 72] Favorites ----------- Power Improved Deuterium Engine Engine Improved Deuterium Engine Power Core Neutrino Core Reactor Light Antimatter Reactor Propulsion Wheel Leg Aluminum Leg Wheel Wheel Utility Huge Storage Unit Device Structural Scanner Storage Huge Storage Unit Processor Machine Analyzer Protection Improved Medium Armor Plating Weapon Mini Assault Cannon Energy Gun EM Pulse Gun Energy Cannon Advanced Beam Cannon Ballistic Gun Enhanced Autogun Ballistic Cannon Mini Assault Cannon Impact Weapon Great Maul Slashing Weapon Great Axe Build | -11 -10 -10 -9 -8 -7 -6 -6 -6 -6 ------- Run | Yrd Mat Min Mat Mat Fac Fac Was Fac Low Slots Evolved 8 | . . . 2 2 2 2 . . . Power . | . . . . . . . . . . Propulsion 2 | . . . . . 1 1 . . . Utility 5 | . . . 2 1 1 1 . . . Weapon 1 | . . . . 1 . . . . . Parts Attached 237 | 1 17 1 25 35 102 16 2 36 2 Power 13 | . 1 . 3 . 4 1 1 3 . Engine 11 | . 1 . 3 . 4 1 . 2 . Core 1 | . . . . . . . 1 . . Reactor 1 | . . . . . . . . 1 . Propulsion 31 | . 4 . 7 3 11 3 . 2 1 Treads . | . . . . . . . . . . Leg 4 | . 1 . . . 2 . . . 1 Wheel 27 | . 3 . 7 3 9 3 . 2 . Hover . | . . . . . . . . . . Flight . | . . . . . . . . . . Utility 140 | 1 7 1 8 25 69 10 1 17 1 Device 95 | 1 2 . 5 15 55 5 1 10 1 Storage 5 | . 3 1 . . 1 . . . . Processor 14 | . 2 . . 2 3 3 . 4 . Hackware . | . . . . . . . . . . Protection 26 | . . . 3 8 10 2 . 3 . Artifact . | . . . . . . . . . . Weapon 53 | . 5 . 7 7 18 2 . 14 . Energy Gun 2 | . 1 . . . 1 . . . . Energy Cannon 5 | . 2 . 3 . . . . . . Ballistic Gun 7 | . 1 . 3 2 1 . . . . Ballistic Cannon 23 | . 1 . . 2 10 2 . 8 . Launcher . | . . . . . . . . . . Special Weapon . | . . . . . . . . . . Impact Weapon 15 | . . . 1 3 5 . . 6 . Slashing Weapon 1 | . . . . . 1 . . . . Piercing Weapon . | . . . . . . . . . . Special Melee Weapon . | . . . . . . . . . . Unidentified Prototypes 5 | . 1 . 1 . 3 . . . . Corrupted Parts 1 | . 1 . . . . . . . . System Corruption 3 | . 3 . . . . . . . . Parts Lost 54 | . 2 . 6 9 6 12 1 18 . Power 5 | . . . 1 . . 1 . 3 . Propulsion 13 | . . . 2 4 2 2 . 3 . Utility 25 | . . . 2 3 3 7 1 9 . Weapon 11 | . 2 . 1 2 1 2 . 3 . Highest Loss Streak 12 | . 1 . 2 2 2 12 1 7 . To Critical Strikes 1 | . . . . . . 1 . . . Average Slot Usage (%) 88 | . 98 100 97 91 89 85 77 67 80 Engine 6 | . 14 14 10 8 6 6 2 . 6 Leg 1 | . 17 . . . 1 . . . . Wheel 13 | . 10 28 20 16 12 12 13 7 6 Device 14 | . 7 . 14 11 17 16 21 14 13 Storage 7 | . 15 14 11 8 6 6 6 4 . Processor 13 | . 4 14 11 9 13 15 13 17 26 Protection 5 | . . . 7 10 6 6 3 3 6 Energy Cannon 2 | . 4 14 9 . . . . . . Ballistic Gun 3 | . 13 . 9 16 . . . . . Ballistic Cannon 10 | . 2 14 . 3 14 13 13 11 20 Impact Weapon 4 | . . . 2 6 6 5 . 5 . Naked Turns . | . . . . . . . . . . Heaviest Build 129 | 15 33 52 63 80 121 129 119 122 47 Greatest Support 56 | 20 26 26 26 22 44 56 56 56 10 Greatest Overweight (x) 33 | . 1 1 6 7 5 2 2 33 4 Average Overweight (x) 2 | . . 1 2 3 2 1 1 1 4 Largest Inventory Capacity 25 | 8 15 20 20 20 25 25 25 25 5 Average Capacity 20 | 8 11 17 20 19 22 25 25 20 5 Most Carried 25 | 8 15 18 20 20 25 25 20 25 5 Average Carried 18 | 7 10 16 18 18 21 23 16 18 3 Final Capacity 25 | 8 15 20 20 5 25 25 25 5 5 Final Carried 25 | 8 15 18 20 5 25 11 20 3 5 Class Distribution -------------------- 83% | Mutant 8% | Scavenger-Mutant 4% | Tank Dominant Class ---------------- Mutant | -10/Materials Mutant | -10/Mines Mutant | -9/Materials Mutant | -8/Materials Mutant | -7/Factory Mutant | -6/Factory Mutant | -6/Waste Mutant | -6/Factory Tank | -6/Lower Caves Resources | -11 -10 -10 -9 -8 -7 -6 -6 -6 -6 ----------- Run | Yrd Mat Min Mat Mat Fac Fac Was Fac Low Matter Collected 6973 | 237 468 147 548 1176 2537 405 411 969 75 Remotely 1947 | . . . 167 799 906 . . . 75 Salvage Created 6899 | 142 533 392 1343 1120 1713 225 440 968 23 Parts 347 | 5 32 21 92 53 91 8 . 45 . Haulers Intercepted 9 | . 1 . 3 . 4 1 . . . Recyclers Shooed 9 | . . . 1 . 3 . . 5 . Parts Field Recycled . | . . . . . . . . . . Retrieved Matter . | . . . . . . . . . . Parts Self-Destructed . | . . . . . . . . . . Prevented . | . . . . . . . . . . Kills | -11 -10 -10 -9 -8 -7 -6 -6 -6 -6 ------- Run | Yrd Mat Min Mat Mat Fac Fac Was Fac Low Combat Hostiles Destroyed 135 | . 11 5 21 29 40 7 2 19 1 Melee 1 | . . . . . 1 . . . . Guns 36 | . 9 . 6 21 . . . . . Cannons 90 | . 1 4 15 5 37 7 2 18 1 AOE 5 | . 1 . . 3 1 . . . . Classes Destroyed 17 | 2 6 2 2 . 2 2 1 . . Worker 14 | . . 1 . . 8 . . 5 . Builder 14 | . 1 . 1 . 6 . . 6 . Tunneler 3 | 2 . . . . 1 . . . . Hauler 9 | . 1 . 3 . 4 1 . . . Recycler 9 | 1 . 2 2 . 2 . . 2 . Mechanic 2 | . . 1 1 . . . . . . Operator 1 | . 1 . . . . . . . . Watcher 10 | . 2 . 4 1 3 . . . . Swarmer 26 | . 3 . 6 8 3 . . 6 . Saboteur 1 | . . . . . . 1 . . . Grunt 54 | . 8 5 7 15 13 1 . 5 . Brawler 4 | . . . . . 2 2 . . . Duelist 6 | . . . 1 . 4 . . 1 . Sentry 25 | . . . 7 6 8 1 . 3 . Hunter 3 | . . . . . . 1 . 1 1 Programmer 14 | . . . . . 10 1 . 3 . Compactor 2 | . . . . . . . 2 . . Savage 1 | . . . . . . . 1 . . Best Kill Streak 8 | 2 5 6 8 5 5 2 1 6 1 Combat Bots Only 5 | . 3 3 4 5 5 2 1 4 1 Max Kills in Single Turn 3 | 1 2 1 1 3 2 2 1 2 1 Gunslinging . | . . . . . . . . . . Exploded 3 | . 1 . . 3 1 . . . . Melee 1 | . . . . . 1 . . . . Uniques/NPCs Destroyed . | . . . . . . . . . . Combat | -11 -10 -10 -9 -8 -7 -6 -6 -6 -6 -------- Run | Yrd Mat Min Mat Mat Fac Fac Was Fac Low Hostile Shots Fired 1185 | . 60 15 97 155 340 216 1 282 19 Missed 344 | . 13 5 17 34 118 54 . 96 7 Damage Taken 12217 | . 570 129 1142 1776 2471 2908 46 3028 147 Core 1972 | . 127 31 310 161 480 285 . 543 35 Absorbed by Shields 652 | . . . . . 557 23 . 52 20 Regen/Repaired (Parts) 844 | . . . . 160 . . 205 479 . Core Remaining (%) 51 | 100 . 36 22 70 31 . . . . Volleys Fired 471 | 9 43 14 77 106 109 30 17 62 4 Largest 3 | 2 2 2 2 3 3 3 2 3 3 Hottest 159 | 60 136 103 136 113 144 144 96 159 159 Shots Fired 990 | 18 79 29 151 221 237 74 33 135 13 Gun 345 | 18 68 . 74 185 . . . . . Cannon 645 | . 11 29 77 36 237 74 33 135 13 Launcher . | . . . . . . . . . . Special . | . . . . . . . . . . Kinetic 871 | 9 52 14 83 221 237 74 33 135 13 Thermal 100 | . 17 15 68 . . . . . . Explosive . | . . . . . . . . . . Electromagnetic 19 | 9 10 . . . . . . . . Robot Hit Streak 20 | 5 14 8 20 18 14 4 6 9 3 Robot Miss Streak 10 | 4 2 2 2 7 6 3 2 3 10 Penetration Max . | . . . . . . . . . . Secondary Targets 7 | . 2 . . 5 . . . . . Max Gunslinging Chain 1 | . 1 . . 1 . . . . . Shots Hit Robots 704 | 10 57 20 110 147 194 47 24 86 9 Core Hits 325 | 4 23 8 38 49 132 20 7 41 3 Critical Kills 3 | . . . . . 2 . . 1 . Critical Parts Destroyed 11 | . . . 1 1 7 . . 2 . Critical Strikes 39 | . . 1 1 2 17 5 1 11 1 Destroy 1 | . . . . 1 . . . . . Blast 25 | . . 1 . 1 8 5 1 8 1 Smash 13 | . . . 1 . 9 . . 3 . Melee Attacks 129 | . . . 14 8 80 7 . 20 . Impact 129 | . . . 14 8 80 7 . 20 . Slashing . | . . . . . . . . . . Piercing . | . . . . . . . . . . Sneak Attacks 27 | . . . 1 . 16 . . 10 . Combat Hostiles . | . . . . . . . . . . Follow-up Attacks . | . . . . . . . . . . Damage Inflicted 19913 | 121 841 433 2416 3195 6853 1536 808 3540 170 Guns 3862 | 121 623 . 922 2196 . . . . . Cannons 12026 | . 156 433 1101 625 4725 1536 808 2472 170 Explosions 601 | . 62 . . 374 165 . . . . Melee 3388 | . . . 388 . 1963 . . 1037 . Ramming 36 | . . . 5 . . . . 31 . Kinetic 14221 | 58 402 198 1031 2821 4725 1536 808 2472 170 Thermal 2068 | . 302 235 992 374 165 . . . . Explosive . | . . . . . . . . . . Electromagnetic 200 | 63 137 . . . . . . . . Impact 3388 | . . . 388 . 1963 . . 1037 . Slashing . | . . . . . . . . . . Piercing . | . . . . . . . . . . Highest Corruption 18 | . 3 3 . . 3 15 15 18 8 Average Corruption 6 | . 3 3 . . 2 13 15 11 8 Corruption Purged 17 | . . . . . 6 . . 11 . Corruption Blocked . | . . . . . . . . . . Effects 171 | . 7 18 . . 29 3 21 83 10 Message Errors 43 | . 1 3 . . 6 1 5 23 4 Matter Fused 37 | . 2 4 . . 9 1 5 14 2 Heat Flow Errors 18 | . 1 1 . . 4 . 1 10 1 Energy Discharges 24 | . . 4 . . 4 1 6 9 . Parts Fused 2 | . . . . . . . . 2 . Data Loss (minor) 21 | . 1 3 . . 3 . 1 12 1 Data Loss (major) 9 | . 1 2 . . 1 . . 5 . Misfires 8 | . . 1 . . 2 . . 4 1 Alerts 2 | . . . . . . . . 1 1 Misdirections 2 | . . . . . . . 2 . . Weapon Failures 5 | . 1 . . . . . 1 3 . Overload Shots . | . . . . . . . . . . Overflow Damage 2172 | . 30 21 234 130 1162 . . 595 . Projectiles 170 | . 14 21 . 24 66 . . 45 . Explosions 177 | . 16 . . 106 55 . . . . Melee 1825 | . . . 234 . 1041 . . 550 . Knockbacks 116 | . . . 1 6 71 10 . 28 . Impact 16 | . . . 1 . 11 . . 4 . Kinetic 94 | . . . . 6 55 10 . 23 . Secondary 6 | . . . . . 5 . . 1 . Self-Inflicted Damage 47 | . 31 . 2 . . . . 14 . Shots 1 | . 1 . . . . . . . . Rammed 11 | . . . 1 . . . . 10 . Targets Rammed 11 | . . . 1 . . . . 10 . Kicked . | . . . . . . . . . . Crushed . | . . . . . . . . . . Highest Temperature 507 | . 250 259 507 463 274 210 143 251 272 Average Temperature 97 | . 71 108 109 116 73 109 90 94 133 Received Heat Transfer 3525 | . 288 72 360 864 608 645 . 688 . Effects 10 | . . 1 4 4 1 . . . . Shutdowns 2 | . . . 1 1 . . . . . Energy Bleed 2 | . . . 1 . 1 . . . . Interference 2 | . . 1 . 1 . . . . . Short Circuit 2 | . . . 1 1 . . . . . Damage (minor) 2 | . . . 1 1 . . . . . Siege Activations . | . . . . . . . . . . Robots Corrupted . | . . . . . . . . . . Combat Hostiles . | . . . . . . . . . . Parts Fried 25 | . 1 1 1 . 10 . . 12 . Impact Corruptions 60 | . . 1 6 . 36 . . 17 . Robots Melted . | . . . . . . . . . . Combat Hostiles . | . . . . . . . . . . Parts Melted 3 | . 1 1 1 . . . . . . Heat Transferred 2940 | . 494 407 1739 200 100 . . . . Parts Sabotaged . | . . . . . . . . . . Parts Stolen . | . . . . . . . . . . Parts Stripped . | . . . . . . . . . . Power Chain Reactions 1 | . 1 . . . . . . . . Alert | -11 -10 -10 -9 -8 -7 -6 -6 -6 -6 ------- Run | Yrd Mat Min Mat Mat Fac Fac Was Fac Low Peak Influence 1116 | 15 207 102 348 741 1116 643 176 258 . Initial 546 | . 9 52 . 139 282 546 175 . . Average 326 | 8 84 67 229 396 503 527 95 106 . Maximum Alert Level 4 | . 1 . 1 3 4 2 . 1 . Low Security (%) 44 | 100 94 100 25 11 21 . 100 93 . Level 1 20 | . 5 . 74 41 18 . . 6 . Level 2 24 | . . . . 47 35 100 . . . Level 3 8 | . . . . . 21 . . . . Level 4 1 | . . . . . 4 . . . . Level 5 . | . . . . . . . . . . High Security . | . . . . . . . . . . Max Security . | . . . . . . . . . . Squads Dispatched 41 | . 2 1 4 6 13 6 . 9 . Investigation 12 | . 2 . 3 . 4 2 . 1 . Extermination 11 | . . . . . 7 1 . 3 . Reinforcement 5 | . . . 1 1 . 1 . 2 . Assault 6 | . . 1 . 1 2 2 . . . Garrison 7 | . . . . 4 . . . 3 . Intercept . | . . . . . . . . . . Searches Triggered . | . . . . . . . . . . Construction Impeded 3 | . . . . 1 . . . 2 . Haulers Reinforced 1 | . . . . . . 1 . . . Active Scanning Responses . | . . . . . . . . . . Cargo Convoy Interrupts . | . . . . . . . . . . Stealth | -11 -10 -10 -9 -8 -7 -6 -6 -6 -6 --------- Run | Yrd Mat Min Mat Mat Fac Fac Was Fac Low Distress Signals 12 | . 1 . 2 4 3 . . 2 . Communications Jammed . | . . . . . . . . . . Distress Signals . | . . . . . . . . . . Times Spotted 240 | . 16 8 36 49 60 19 6 43 3 Peak Tracking Total 9 | . 4 4 5 5 5 9 4 7 2 Tactical Retreats 18 | . . . 3 2 2 3 1 7 . Traps | -11 -10 -10 -9 -8 -7 -6 -6 -6 -6 ------- Run | Yrd Mat Min Mat Mat Fac Fac Was Fac Low Traps Triggered 10 | . 2 . 2 1 3 1 . 1 . Indirectly . | . . . . . . . . . . Trap Hack Attempts . | . . . . . . . . . . Triggered . | . . . . . . . . . . Disarmed . | . . . . . . . . . . Reprogrammed . | . . . . . . . . . . Reused . | . . . . . . . . . . Traps Extracted . | . . . . . . . . . . Installed . | . . . . . . . . . . Triggered . | . . . . . . . . . . Machines | -11 -10 -10 -9 -8 -7 -6 -6 -6 -6 ---------- Run | Yrd Mat Min Mat Mat Fac Fac Was Fac Low Machines Disabled 16 | . . . 1 5 8 1 . 1 . Max in Single Turn 2 | . . . 1 2 2 1 . 1 . Garrison Access 2 | . . . . . 1 1 . . . Machines Repaired . | . . . . . . . . . . Machines Dismantled . | . . . . . . . . . . Machines Sabotaged . | . . . . . . . . . . Overloaded Fab Kills . | . . . . . . . . . . Hacking | -11 -10 -10 -9 -8 -7 -6 -6 -6 -6 --------- Run | Yrd Mat Min Mat Mat Fac Fac Was Fac Low Machines Accessed 40 | . 7 1 5 5 16 3 . 3 . Terminals 28 | . 7 . 4 4 11 1 . 1 . Fabricators 4 | . . . . . 3 . . 1 . Repair Stations 1 | . . . . 1 . . . . . Recycling Units 2 | . . . 1 . 1 . . . . Scanalyzers . | . . . . . . . . . . Garrison Access 4 | . . . . . 1 2 . 1 . Total Hacks 110 | . 23 1 13 22 39 7 . 5 . Successful 56 | . 14 1 10 15 16 . . . . Failed 54 | . 9 . 3 7 23 7 . 5 . Catastrophic 10 | . 1 . . . 4 1 . 4 . Database Lockouts . | . . . . . . . . . . Manual 90 | . 21 . 12 20 31 3 . 3 . Terminals 83 | . 23 . 10 20 27 2 . 1 . Fabricators 10 | . . . . . 8 . . 2 . Repair Stations 2 | . . . . 2 . . . . . Recycling Units 6 | . . . 3 . 3 . . . . Scanalyzers . | . . . . . . . . . . Garrison Access 8 | . . . . . 1 5 . 2 . Terminal Hacks 16 | . 6 1 2 4 3 . . . . Part Schematic 2 | . 1 . . 1 . . . . . Robot Analysis 4 | . 3 . . 1 . . . . . Open Door 1 | . . 1 . . . . . . . Terminal Index 4 | . 1 . 1 1 1 . . . . Unreport Threat 1 | . . . . . 1 . . . . Locate Traps 2 | . . . 1 1 . . . . . Recall Investigation 1 | . . . . . 1 . . . . Zone Layout 1 | . 1 . . . . . . . . Fabricator Hacks . | . . . . . . . . . . Repair Station Hacks 2 | . . . . 2 . . . . . Scan Component 1 | . . . . 1 . . . . . Repair 1 | . . . . 1 . . . . . Recycling Unit Hacks 1 | . . . 1 . . . . . . Report Inventory 1 | . . . 1 . . . . . . Scanalyzer . | . . . . . . . . . . Garrison Access Hacks 1 | . . . . . 1 . . . . Seal Access 1 | . . . . . 1 . . . . Unauthorized Hacks 36 | . 8 . 7 9 12 . . . . Terminals 30 | . 8 . 5 9 8 . . . . Track 9 | . 1 . 3 3 2 . . . . Assimilate 2 | . . . . 1 1 . . . . Botnet 16 | . 6 . 2 4 4 . . . . Operators 3 | . 1 . . 1 1 . . . . Fabricators 3 | . . . . . 3 . . . . Liberate 2 | . . . . . 2 . . . . Fabnet 1 | . . . . . 1 . . . . Repair Stations . | . . . . . . . . . . Recycling Units 3 | . . . 2 . 1 . . . . Monitor 2 | . . . 1 . 1 . . . . Recyclers 1 | . . . 1 . . . . . . Scanalyzers . | . . . . . . . . . . Garrison Access . | . . . . . . . . . . Data Cores Recovered 1 | . 1 . . . . . . . . Used 1 | . 1 . . . . . . . . Hacking Detections 35 | . 6 . 4 4 15 3 . 3 . Full Trace Events 6 | . . . . . 3 2 . 1 . Feedback Events . | . . . . . . . . . . Feedback Blocked . | . . . . . . . . . . Robot Schematics Acquired . | . . . . . . . . . . Robots Built . | . . . . . . . . . . Authchips . | . . . . . . . . . . Time . | . . . . . . . . . . Total Robot Build Rating . | . . . . . . . . . . Part Schematics Acquired 2 | . 1 . . 1 . . . . . Parts Built . | . . . . . . . . . . Authchips . | . . . . . . . . . . Time . | . . . . . . . . . . Total Part Build Rating . | . . . . . . . . . . Parts Repaired 1 | . . . . 1 . . . . . Time 38 | . . . . 38 . . . . . Parts Recycled . | . . . . . . . . . . Recycled Matter . | . . . . . . . . . . Retrieved Matter . | . . . . . . . . . . Retrieved Components . | . . . . . . . . . . Parts Scanalyzed . | . . . . . . . . . . Part Schematics Acquired . | . . . . . . . . . . Parts Damaged . | . . . . . . . . . . Bothacking | -11 -10 -10 -9 -8 -7 -6 -6 -6 -6 ------------ Run | Yrd Mat Min Mat Mat Fac Fac Was Fac Low Used RIF Installer . | . . . . . . . . . . Robots Hacked 2 | . . . . . . . . 2 . Non-combat . | . . . . . . . . . . Combat 2 | . . . . . . . . 2 . Robot Hacks Applied . | . . . . . . . . . . Relay Couplers Released 2 | . . . . . . 2 . . . Machine Destruction 2 | . . . . . . 2 . . . Fabnet Peak Effective % 3 | . . . . . . 3 3 3 3 Autooverrided 2 | . . . . . . . . 2 . Robots Rewired . | . . . . . . . . . . Allies Hacked . | . . . . . . . . . . Hacks Repelled . | . . . . . . . . . . Allies | -11 -10 -10 -9 -8 -7 -6 -6 -6 -6 -------- Run | Yrd Mat Min Mat Mat Fac Fac Was Fac Low Total Allies 27 | . . 1 . . 6 . 18 2 . Largest Group 18 | . . 1 . . 4 . 18 2 . Highest-Rated Group 638 | . . 31 . . 96 . 638 51 . Highest-Rated Ally 50 | . . 31 . . 32 . 50 37 . Total Orders . | . . . . . . . . . . Ally Attacks 159 | . . 14 . . 28 . 112 5 . Total Damage 5324 | . . 212 . . 324 . 4714 74 . Kills 19 | . . 1 . . 6 . 12 . . Allies Corrupted . | . . . . . . . . . . Allies Melted . | . . . . . . . . . . Intel | -11 -10 -10 -9 -8 -7 -6 -6 -6 -6 ------- Run | Yrd Mat Min Mat Mat Fac Fac Was Fac Low Robot Analysis Total 4 | . 3 . . 1 . . . . . Derelict Logs Recovered 2 | . . 2 . . . . . . . Drone Launches . | . . . . . . . . . . Drone Recoveries . | . . . . . . . . . . Exploration | -11 -10 -10 -9 -8 -7 -6 -6 -6 -6 ------------- Run | Yrd Mat Min Mat Mat Fac Fac Was Fac Low Turns Passed 13692 | 80 1078 880 1537 1261 5330 848 401 2036 241 Spaces Moved 7733 | 38 624 750 809 509 2916 452 283 1194 158 Core 554 | . . . . 27 41 . . 486 . Treads . | . . . . . . . . . . Legs 670 | 38 317 . . . 315 . . . . Wheels 6509 | . 307 750 809 482 2560 452 283 708 158 Hover . | . . . . . . . . . . Flight . | . . . . . . . . . . Fastest Speed 50 | 120 105 105 110 100 110 115 115 50 140 Average Speed 127 | 120 112 105 122 136 137 129 118 125 140 Slowest Speed 1700 | 120 190 105 170 185 200 130 130 1700 140 Overloaded Moves . | . . . . . . . . . . Propulsion Burnouts . | . . . . . . . . . . Robots Hopped . | . . . . . . . . . . Cave-ins Triggered . | . . . . . . . . . . Exploration Rate (%) 56 | 3 95 97 70 51 70 15 96 36 27 Regions Visited 9 Branch Regions 2 Pre-discovered Areas 1 | . . 1 . . . . . . . Known Exits Taken 2 | . . . 1 . 1 . . . . Unknown Exits Taken 5 | 1 1 1 . 1 . . . 1 . Scrap Searched 2 | . . 1 . . . . . . 1 Spaces Dug 79 | . . . 9 8 49 4 . 9 . Terrain Destroyed 243 | . 2 . 9 22 146 20 6 37 1 Melee 79 | . . . 9 8 49 4 . 9 . Projectile 87 | . . . . 4 32 16 6 28 1 AOE 77 | . 2 . . 10 65 . . . . Terrain Rammed . | . . . . . . . . . . Walls Destroyed . | . . . . . . . . . . Machines Disabled . | . . . . . . . . . . Actions | -11 -10 -10 -9 -8 -7 -6 -6 -6 -6 --------- Run | Yrd Mat Min Mat Mat Fac Fac Was Fac Low Total 10458 | 55 928 816 1200 934 3839 636 315 1567 168 Wait 1615 | 2 207 45 237 235 538 126 6 217 2 Move 7725 | 37 623 749 808 508 2915 452 282 1193 158 Hop . | . . . . . . . . . . Pick Up 143 | 4 22 4 19 19 46 4 8 15 2 Fast Attach 44 | 1 . . 3 4 21 . 1 13 1 Attach 66 | . 5 . 8 16 8 13 . 16 . Detach 11 | . . . . 4 2 . . 5 . Swap 127 | . 12 1 14 15 73 3 1 7 1 Drop 116 | 2 16 3 19 19 47 1 . 9 . Fire 471 | 9 43 14 77 106 109 30 17 62 4 Melee 129 | . . . 14 8 80 7 . 20 . Ram 11 | . . . 1 . . . . 10 . Kick . | . . . . . . . . . . Crush . | . . . . . . . . . . Escape Stasis . | . . . . . . . . . . Rewire . | . . . . . . . . . . Trap . | . . . . . . . . . . Miscellaneous . | . . . . . . . . . . Route ------- -11/Scrapyard -10/Materials (discovered 4 exits: *Mat x2 / *Min x2) -10/Mines (discovered 2 exits: *Mat x2) -9/Materials (discovered 3 exits: *Mat / [*Min] / *Sto) -8/Materials (discovered 2 exits: *Fac x2) -7/Factory (discovered 3 exits: *Fac x2 / *Low) -6/Factory -6/Waste -6/Factory -6/Lower Caves History --------- Turn | Location | Event 2 | -11/Scrapyard | Discovered new exit (range 3) 81 | -11/Scrapyard | Entered Materials 316 | -10/Materials | Build established: Mutant 740 | -10/Materials | Discovered new exit (range 15) 791 | -10/Materials | Discovered new exit (range 7) 821 | -10/Materials | Core integrity fell below 50% 960 | -10/Materials | Discovered new exit (range 5) 1131 | -10/Materials | Discovered new exit (range 13) 1159 | -10/Materials | Entered Mines 1163 | -10/Mines | Met a Derelict bent on vengeance 1359 | -10/Mines | Found the Drone Emporium 1365 | -10/Mines | Found Prototype Device 1648 | -10/Mines | Met a Derelict testing a Signal Generator 1660 | -10/Mines | Found Signal Generator 1844 | -10/Mines | Discovered new exit (range 8) 1964 | -10/Mines | Learned location of Storage (-9) 1965 | -10/Mines | Learned location of 1 exit from Materials 1967 | -10/Mines | Discovered new exit (range 5) 2039 | -10/Mines | Entered Materials 2039 | -9/Materials | Evolved 2 slots: Utility x2 2040 | -9/Materials | Identified exit to Storage 2041 | -9/Materials | Identified exit to Materials 2658 | -9/Materials | Core integrity fell below 50% 3016 | -9/Materials | Discovered new exit (range 13) 3576 | -9/Materials | Entered another Materials area 3576 | -8/Materials | Evolved 2 slots: Utility x1, Weapon x1 4093 | -8/Materials | Repaired Hvy. Armor Plating 4254 | -8/Materials | Discovered new exit (range 3) 4426 | -8/Materials | Garrison activated, responded to threat 4765 | -8/Materials | Garrison activated, responded to threat 4823 | -8/Materials | Discovered new exit (range 3) 4837 | -8/Materials | Entered Factory 4837 | -7/Factory | Evolved 2 slots: Propulsion x1, Utility x1 5708 | -7/Factory | Discovered new exit (range 13) 5751 | -7/Factory | Build established: Scavenger-Mutant 7251 | -7/Factory | Identified exit to Factory 7273 | -7/Factory | Build established: Mutant 8037 | -7/Factory | First assault squad dispatched 8506 | -7/Factory | Discovered new exit (range 8) 8519 | -7/Factory | Identified exit to Lower Caves 9274 | -7/Factory | Core integrity fell below 50% 9509 | -7/Factory | Discovered exit to Factory (range 11) 10167 | -7/Factory | Entered another Factory area 10167 | -6/Factory | Evolved 2 slots: Propulsion x1, Utility x1 10463 | -6/Factory | Spotted B-75 Beast 10867 | -6/Factory | First assault squad dispatched 10948 | -6/Factory | System corruption reached 10% 11015 | -6/Factory | Sucked down chute 11015 | -6/Factory | Entered Waste 11026 | -6/Waste | Spotted C-40 Crusher 11026 | -6/Waste | Spotted C-40 Crusher 11033 | -6/Waste | Lost 12 parts (1p2n7u2w) 11051 | -6/Waste | Spotted C-40 Crusher 11054 | -6/Waste | Spotted C-40 Crusher 11058 | -6/Waste | Spotted C-40 Crusher 11062 | -6/Waste | Warlord forces began an assault 11084 | -6/Waste | Allies destroyed C-40 Crusher 11090 | -6/Waste | Allies destroyed C-40 Crusher 11095 | -6/Waste | Allies destroyed C-40 Crusher 11134 | -6/Waste | Lost 13 allies 11157 | -6/Waste | Spotted C-40 Crusher 11189 | -6/Waste | Destroyed C-40 Crusher 11225 | -6/Waste | Crushed by Compactor (1 part destroyed) 11225 | -6/Waste | Destroyed C-40 Crusher 11242 | -6/Waste | Lost 3 allies 11249 | -6/Waste | Discovered new exit (range 12) 11297 | -6/Waste | Found Gamma Bomb Array 11416 | -6/Waste | Entered Factory 11416 | -6/Factory | Accompanied by 2 allies 11851 | -6/Factory | Garrison activated, responded to threat 12949 | -6/Factory | Core integrity fell below 50% 13003 | -6/Factory | Lost 7 parts (4u3w) 13016 | -6/Factory | Spotted B-75 Beast 13135 | -6/Factory | Core integrity fell below 20% 13420 | -6/Factory | Discovered new exit (range 6) 13452 | -6/Factory | Entered Lower Caves 13677 | -6/Lower Caves | Spotted B-75 Beast 13693 | -6/Lower Caves | Destroyed by P-60 Hacker with Shock Rifle Last Messages --------------- 13525_ Acquired 9 matter. 13548_ System corrupted: FCS attempts to trigger Magnetic Acceleration Cannon. 13548_ System corrupted: Magnetic Acceleration Cannon misfires. 13549_ Acquired 3 matter. 13596_ Q8= >/PTZXPRS 1YUS&%M&SDXU 13616_ CFKPDKKYI5FIHXWKBLMMU|ZJ UEE